[Event "Titled Tuesday Blitz October 31 Early 2023"]
[White "Arhan_Anand"]
[Black "Fernandez, Michael"]
[BlackFideId "5803560"]
[WhiteElo "2717"]
[BlackElo "2368"]
[Result "1/2-1/2"]
[Round "2"]
[TimeControl "180+1"]
[Date "2023.10.31"]
[WhiteClock "0:00:22"]
[BlackClock "0:00:09"]
[Board "119"]

1. b3 {[%clk 0:03:00]}  Nf6 {[%clk 0:02:56]} 2. Bb2 {[%clk 0:03:00]}  c5 {[%clk 0:02:56]} 3. Nf3 {[%clk 0:02:58]}  Nc6 {[%clk 0:02:56]} 4. c4 {[%clk 0:02:58]}  e5 {[%clk 0:02:52]} 5. Nxe5 {[%clk 0:02:50]}  Nxe5 {[%clk 0:02:52]} 6. Bxe5 {[%clk 0:02:51]}  d6 {[%clk 0:02:50]} 7. Bb2 {[%clk 0:02:50]}  b6 {[%clk 0:02:51]} 8. d3 {[%clk 0:02:45]}  Be7 {[%clk 0:02:51]} 9. e4 {[%clk 0:02:44]}  O-O {[%clk 0:02:51]} 10. Be2 {[%clk 0:02:43]}  Nd7 {[%clk 0:02:49]} 11. O-O {[%clk 0:02:42]}  Bf6 {[%clk 0:02:49]} 12. Nc3 {[%clk 0:02:41]}  Bd4 {[%clk 0:02:46]} 13. Qd2 {[%clk 0:02:36]}  Ne5 {[%clk 0:02:39]} 14. Nd5 {[%clk 0:02:31]}  Be6 {[%clk 0:02:27]} 15. Bxd4 {[%clk 0:02:30]}  cxd4 {[%clk 0:02:28]} 16. Nb4 {[%clk 0:02:26]}  f5 {[%clk 0:02:19]} 17. exf5 {[%clk 0:02:26]}  Bxf5 {[%clk 0:02:15]} 18. Nc2 {[%clk 0:02:25]}  Qh4 {[%clk 0:02:06]} 19. g3 {[%clk 0:02:14]}  Qh3 {[%clk 0:01:48]} 20. Nxd4 {[%clk 0:02:15]}  Bg4 {[%clk 0:01:44]} 21. f4 {[%clk 0:02:11]}  Bxe2 {[%clk 0:01:41]} 22. Qxe2 {[%clk 0:02:12]}  Ng4 {[%clk 0:01:39]} 23. Rae1 {[%clk 0:01:44]}  Rfe8 {[%clk 0:01:33]} 24. Qd2 {[%clk 0:01:43]}  Qh6 {[%clk 0:00:52]} 25. Nf3 {[%clk 0:01:40]}  d5 {[%clk 0:00:51]} 26. Rxe8+ {[%clk 0:01:35]}  Rxe8 {[%clk 0:00:50]} 27. Re1 {[%clk 0:01:35]}  Rd8 {[%clk 0:00:44]} 28. Qe2 {[%clk 0:01:24]}  dxc4 {[%clk 0:00:18]} 29. dxc4 {[%clk 0:01:24]}  Qd6 {[%clk 0:00:15]} 30. Qe6+ {[%clk 0:01:21]}  Qxe6 {[%clk 0:00:15]} 31. Rxe6 {[%clk 0:01:22]}  Rd1+ {[%clk 0:00:16]} 32. Kg2 {[%clk 0:01:22]}  Ra1 {[%clk 0:00:15]} 33. a4 {[%clk 0:01:19]}  Rb1 {[%clk 0:00:13]} 34. Ng5 {[%clk 0:01:15]}  g6 {[%clk 0:00:13]} 35. Re8+ {[%clk 0:01:14]}  Kg7 {[%clk 0:00:13]} 36. Re7+ {[%clk 0:01:15]}  Kg8 {[%clk 0:00:14]} 37. h3 {[%clk 0:01:06]}  Rb2+ {[%clk 0:00:13]} 38. Kf3 {[%clk 0:01:06]}  Nh2+ {[%clk 0:00:14]} 39. Ke3 {[%clk 0:01:05]}  Nf1+ {[%clk 0:00:13]} 40. Kd3 {[%clk 0:01:02]}  Rxb3+ {[%clk 0:00:13]} 41. Kc2 {[%clk 0:00:59]}  Rxg3 {[%clk 0:00:14]} 42. Nxh7 {[%clk 0:00:59]}  Ne3+ {[%clk 0:00:12]} 43. Kc1 {[%clk 0:00:56]}  Nxc4 {[%clk 0:00:12]} 44. Nf6+ {[%clk 0:00:56]}  Kf8 {[%clk 0:00:13]} 45. Rxa7 {[%clk 0:00:56]}  Rxh3 {[%clk 0:00:13]} 46. Nh7+ {[%clk 0:00:50]}  Kg8 {[%clk 0:00:13]} 47. Ng5 {[%clk 0:00:51]}  Rg3 {[%clk 0:00:12]} 48. Ne4 {[%clk 0:00:46]}  Re3 {[%clk 0:00:12]} 49. Nf6+ {[%clk 0:00:46]}  Kf8 {[%clk 0:00:12]} 50. Nd5 {[%clk 0:00:42]}  Rd3 {[%clk 0:00:11]} 51. Rd7 {[%clk 0:00:34]}  Ra3 {[%clk 0:00:11]} 52. Ra7 {[%clk 0:00:25]}  b5 {[%clk 0:00:10]} 53. Ra8+ {[%clk 0:00:25]}  Kg7 {[%clk 0:00:10]} 54. Ra7+ {[%clk 0:00:22]}  Kf8 {[%clk 0:00:11]} 55. Ra8+ {[%clk 0:00:22]}  Kf7 {[%clk 0:00:11]} 56. Ra7+ {[%clk 0:00:22]}  Kf8 {[%clk 0:00:09]} 1/2-1/2


[Site "https://www.chess.com"]

[Event "Titled Tuesday Blitz October 31 Early 2023"]
[White "Djokic, Mihailo"]
[Black "Pumpkin_in_moonlight"]
[WhiteFideId "976440"]
[WhiteElo "2699"]
[BlackElo "2350"]
[Result "1-0"]
[Round "2"]
[TimeControl "180+1"]
[Date "2023.10.31"]
[WhiteClock "0:01:31"]
[BlackClock "0:00:04"]
[Board "122"]

1. e4 {[%clk 0:03:00]}  e5 {[%clk 0:02:56]} 2. Nf3 {[%clk 0:02:33]}  Nc6 {[%clk 0:02:56]} 3. Nc3 {[%clk 0:02:33]}  Nf6 {[%clk 0:02:50]} 4. Bb5 {[%clk 0:02:33]}  Bb4 {[%clk 0:02:22]} 5. O-O {[%clk 0:02:32]}  O-O {[%clk 0:02:13]} 6. d3 {[%clk 0:02:29]}  d6 {[%clk 0:02:07]} 7. Bg5 {[%clk 0:02:29]}  Bxc3 {[%clk 0:01:23]} 8. bxc3 {[%clk 0:02:26]}  h6 {[%clk 0:01:20]} 9. Bh4 {[%clk 0:01:57]}  Bg4 {[%clk 0:01:17]} 10. h3 {[%clk 0:01:56]}  Bh5 {[%clk 0:01:11]} 11. g4 {[%clk 0:01:54]}  Bg6 {[%clk 0:01:10]} 12. Re1 {[%clk 0:01:52]}  Nb8 {[%clk 0:01:03]} 13. d4 {[%clk 0:01:50]}  c6 {[%clk 0:00:57]} 14. Bd3 {[%clk 0:01:46]}  Nbd7 {[%clk 0:00:56]} 15. Rb1 {[%clk 0:01:47]}  Rb8 {[%clk 0:00:51]} 16. Nd2 {[%clk 0:01:47]}  Qc7 {[%clk 0:00:44]} 17. Qf3 {[%clk 0:01:47]}  d5 {[%clk 0:00:23]} 18. Bg3 {[%clk 0:01:40]}  Rfe8 {[%clk 0:00:18]} 19. exd5 {[%clk 0:01:38]}  Nxd5 {[%clk 0:00:16]} 20. Bxg6 {[%clk 0:01:38]}  fxg6 {[%clk 0:00:15]} 21. Nc4 {[%clk 0:01:39]}  Nf4 {[%clk 0:00:13]} 22. Nxe5 {[%clk 0:01:32]}  Nxe5 {[%clk 0:00:13]} 23. Qxf4 {[%clk 0:01:31]}  Rf8 {[%clk 0:00:04]} 24. Qxe5 {[%clk 0:01:31]} 1-0


[Site "https://www.chess.com"]

[Event "Titled Tuesday Blitz October 31 Early 2023"]
[White "Preotu, Razvan"]
[Black "Diaz, Fernando"]
[WhiteFideId "2613280"]
[BlackFideId "3701255"]
[WhiteElo "2684"]
[BlackElo "2349"]
[Result "1-0"]
[Round "2"]
[TimeControl "180+1"]
[Date "2023.10.31"]
[WhiteClock "0:01:27"]
[BlackClock "0:00:33"]
[Board "123"]

1. e4 {[%clk 0:02:57]}  e6 {[%clk 0:02:16]} 2. d4 {[%clk 0:02:52]}  d5 {[%clk 0:02:17]} 3. Nc3 {[%clk 0:02:52]}  Bb4 {[%clk 0:02:16]} 4. e5 {[%clk 0:02:52]}  c5 {[%clk 0:02:17]} 5. a3 {[%clk 0:02:53]}  Bxc3+ {[%clk 0:02:17]} 6. bxc3 {[%clk 0:02:54]}  Ne7 {[%clk 0:02:17]} 7. h4 {[%clk 0:02:54]}  Qa5 {[%clk 0:02:17]} 8. Bd2 {[%clk 0:02:53]}  Qa4 {[%clk 0:02:17]} 9. h5 {[%clk 0:02:54]}  h6 {[%clk 0:02:18]} 10. Qg4 {[%clk 0:02:53]}  Nf5 {[%clk 0:02:17]} 11. Bd3 {[%clk 0:02:53]}  Kf8 {[%clk 0:01:57]} 12. Qf4 {[%clk 0:02:26]}  cxd4 {[%clk 0:01:52]} 13. g4 {[%clk 0:02:12]}  Ne7 {[%clk 0:01:42]} 14. cxd4 {[%clk 0:02:12]}  Nbc6 {[%clk 0:01:42]} 15. Nf3 {[%clk 0:02:07]}  Bd7 {[%clk 0:01:30]} 16. Rg1 {[%clk 0:01:45]}  Na5 {[%clk 0:01:17]} 17. g5 {[%clk 0:01:37]}  Nf5 {[%clk 0:00:51]} 18. gxh6 {[%clk 0:01:34]}  Rxh6 {[%clk 0:00:49]} 19. Bb4+ {[%clk 0:01:27]}  Ke8 {[%clk 0:00:38]} 20. Bxf5 {[%clk 0:01:27]}  exf5 {[%clk 0:00:33]} 21. Rxg7 {[%clk 0:01:27]} 1-0


[Site "https://www.chess.com"]

[Event "Titled Tuesday Blitz October 31 Early 2023"]
[White "Xtrmntr78"]
[Black "Girinath, P.D.S."]
[BlackFideId "5000572"]
[WhiteElo "2679"]
[BlackElo "2344"]
[Result "1-0"]
[Round "2"]
[TimeControl "180+1"]
[Date "2023.10.31"]
[WhiteClock "0:02:24"]
[BlackClock "0:02:22"]
[Board "124"]

1. c4 {[%clk 0:02:56]}  d5 {[%clk 0:02:49]} 2. Nc3 {[%clk 0:02:57]}  e6 {[%clk 0:02:48]} 3. d4 {[%clk 0:02:57]}  Nf6 {[%clk 0:02:48]} 4. Nf3 {[%clk 0:02:57]}  dxc4 {[%clk 0:02:45]} 5. e3 {[%clk 0:02:56]}  Bb4 {[%clk 0:02:40]} 6. Bxc4 {[%clk 0:02:56]}  c5 {[%clk 0:02:38]} 7. O-O {[%clk 0:02:55]}  h5 {[%clk 0:02:36]} 8. a3 {[%clk 0:02:54]}  Ba5 {[%clk 0:02:33]} 9. dxc5 {[%clk 0:02:49]}  a6 {[%clk 0:02:33]} 10. b4 {[%clk 0:02:48]}  Bc7 {[%clk 0:02:33]} 11. Qxd8+ {[%clk 0:02:47]}  Bxd8 {[%clk 0:02:32]} 12. Bb2 {[%clk 0:02:45]}  Nc6 {[%clk 0:02:32]} 13. Rfd1 {[%clk 0:02:42]}  b5 {[%clk 0:02:32]} 14. Nxb5 {[%clk 0:02:27]}  axb5 {[%clk 0:02:28]} 15. Bxb5 {[%clk 0:02:27]}  Bd7 {[%clk 0:02:28]} 16. Rxd7 {[%clk 0:02:25]}  Kxd7 {[%clk 0:02:22]} 17. Ne5+ {[%clk 0:02:24]} 1-0


[Site "https://www.chess.com"]

[Event "Titled Tuesday Blitz October 31 Early 2023"]
[White "Szente Varga, Fruzsina"]
[Black "Kuzhylnyi, Oleksandr"]
[WhiteFideId "712264"]
[BlackFideId "34110500"]
[WhiteElo "2328"]
[BlackElo "2637"]
[Result "0-1"]
[Round "2"]
[TimeControl "180+1"]
[Date "2023.10.31"]
[WhiteClock "0:00:01"]
[BlackClock "0:00:16"]
[Board "127"]

1. e4 {[%clk 0:03:00]}  g6 {[%clk 0:03:00]} 2. d4 {[%clk 0:03:00]}  Bg7 {[%clk 0:03:00]} 3. Be3 {[%clk 0:02:56]}  d6 {[%clk 0:02:56]} 4. Nc3 {[%clk 0:02:56]}  a6 {[%clk 0:02:54]} 5. f3 {[%clk 0:02:56]}  b5 {[%clk 0:02:52]} 6. Qd2 {[%clk 0:02:56]}  Nd7 {[%clk 0:02:49]} 7. O-O-O {[%clk 0:02:52]}  Bb7 {[%clk 0:02:49]} 8. h4 {[%clk 0:02:46]}  c5 {[%clk 0:02:48]} 9. dxc5 {[%clk 0:02:45]}  Nxc5 {[%clk 0:02:46]} 10. h5 {[%clk 0:02:42]}  Qa5 {[%clk 0:02:42]} 11. Bxc5 {[%clk 0:02:27]}  b4 {[%clk 0:02:23]} 12. Bxb4 {[%clk 0:01:31]}  Qxb4 {[%clk 0:02:23]} 13. Nge2 {[%clk 0:01:22]}  Rc8 {[%clk 0:02:16]} 14. h6 {[%clk 0:00:57]}  Be5 {[%clk 0:02:07]} 15. f4 {[%clk 0:00:52]}  Bxc3 {[%clk 0:01:56]} 16. Nxc3 {[%clk 0:00:51]}  Bxe4 {[%clk 0:01:35]} 17. a3 {[%clk 0:00:36]}  Qb7 {[%clk 0:01:32]} 18. Bxa6 {[%clk 0:00:22]}  Qxa6 {[%clk 0:01:33]} 19. Nxe4 {[%clk 0:00:22]}  f5 {[%clk 0:01:19]} 20. Qd4 {[%clk 0:00:17]}  Qc4 {[%clk 0:01:06]} 21. Qxc4 {[%clk 0:00:16]}  Rxc4 {[%clk 0:01:06]} 22. Nc3 {[%clk 0:00:14]}  Rxf4 {[%clk 0:01:07]} 23. a4 {[%clk 0:00:15]}  Nf6 {[%clk 0:01:05]} 24. Rhe1 {[%clk 0:00:13]}  Kd7 {[%clk 0:01:05]} 25. a5 {[%clk 0:00:12]}  Ra8 {[%clk 0:01:04]} 26. Nd5 {[%clk 0:00:10]}  Nxd5 {[%clk 0:01:05]} 27. Rxd5 {[%clk 0:00:11]}  Ra4 {[%clk 0:01:05]} 28. Rd3 {[%clk 0:00:09]}  R8xa5 {[%clk 0:00:59]} 29. Kd2 {[%clk 0:00:09]}  Rh4 {[%clk 0:00:57]} 30. b3 {[%clk 0:00:08]}  Rxh6 {[%clk 0:00:56]} 31. Rde3 {[%clk 0:00:09]}  e5 {[%clk 0:00:55]} 32. Rd3 {[%clk 0:00:09]}  Rh2 {[%clk 0:00:54]} 33. Re2 {[%clk 0:00:09]}  Ke6 {[%clk 0:00:54]} 34. b4 {[%clk 0:00:07]}  Rb5 {[%clk 0:00:54]} 35. c3 {[%clk 0:00:07]}  e4 {[%clk 0:00:54]} 36. Rd4 {[%clk 0:00:07]}  d5 {[%clk 0:00:54]} 37. Kc2 {[%clk 0:00:08]}  Rh1 {[%clk 0:00:53]} 38. Kb3 {[%clk 0:00:08]}  Ke5 {[%clk 0:00:50]} 39. Ka4 {[%clk 0:00:08]}  Rb8 {[%clk 0:00:49]} 40. Red2 {[%clk 0:00:08]}  Ra1+ {[%clk 0:00:41]} 41. Kb3 {[%clk 0:00:08]}  Rb5 {[%clk 0:00:41]} 42. Kb2 {[%clk 0:00:08]}  Ra8 {[%clk 0:00:35]} 43. Kb3 {[%clk 0:00:09]}  f4 {[%clk 0:00:33]} 44. Rd1 {[%clk 0:00:08]}  g5 {[%clk 0:00:32]} 45. Rh1 {[%clk 0:00:08]}  Ra7 {[%clk 0:00:30]} 46. Rh5 {[%clk 0:00:08]}  Kf5 {[%clk 0:00:29]} 47. Rh6 {[%clk 0:00:09]}  e3 {[%clk 0:00:25]} 48. Rh1 {[%clk 0:00:05]}  Ke5 {[%clk 0:00:21]} 49. Re1 {[%clk 0:00:05]}  Rb6 {[%clk 0:00:20]} 50. Red1 {[%clk 0:00:05]}  Rd7 {[%clk 0:00:19]} 51. Kc2 {[%clk 0:00:03]}  h6 {[%clk 0:00:18]} 52. c4 {[%clk 0:00:03]}  Rxb4 {[%clk 0:00:17]} 53. Rxd5+ {[%clk 0:00:03]}  Rxd5 {[%clk 0:00:17]} 54. cxd5 {[%clk 0:00:03]}  Rc4+ {[%clk 0:00:16]} 55. Kb3 {[%clk 0:00:04]}  Rc7 {[%clk 0:00:16]} 56. Re1 {[%clk 0:00:01]}  Kxd5 {[%clk 0:00:16]} 0-1


[Site "https://www.chess.com"]

[Event "Titled Tuesday Blitz October 31 Early 2023"]
[White "Dzida, Kamil"]
[Black "Arslanov, Shamil"]
[WhiteFideId "21828652"]
[BlackFideId "4192826"]
[WhiteElo "2327"]
[BlackElo "2633"]
[Result "1-0"]
[Round "2"]
[TimeControl "180+1"]
[Date "2023.10.31"]
[WhiteClock "0:00:18"]
[BlackClock "0:00:11"]
[Board "128"]

1. d4 {[%clk 0:02:57]}  e5 {[%clk 0:02:54]} 2. dxe5 {[%clk 0:02:57]}  d6 {[%clk 0:02:52]} 3. Nf3 {[%clk 0:02:57]}  Bg4 {[%clk 0:02:51]} 4. e4 {[%clk 0:02:55]}  Nc6 {[%clk 0:02:49]} 5. Bb5 {[%clk 0:02:49]}  Qd7 {[%clk 0:02:46]} 6. h3 {[%clk 0:02:45]}  Bh5 {[%clk 0:02:45]} 7. O-O {[%clk 0:02:29]}  O-O-O {[%clk 0:02:32]} 8. Nc3 {[%clk 0:02:28]}  a6 {[%clk 0:02:27]} 9. Ba4 {[%clk 0:02:21]}  Qe8 {[%clk 0:02:18]} 10. Nd5 {[%clk 0:02:07]}  dxe5 {[%clk 0:02:08]} 11. c3 {[%clk 0:01:55]}  Nf6 {[%clk 0:01:58]} 12. Bg5 {[%clk 0:01:51]}  Be7 {[%clk 0:01:45]} 13. Bxf6 {[%clk 0:01:52]}  Bxf6 {[%clk 0:01:44]} 14. Qe2 {[%clk 0:01:44]}  g5 {[%clk 0:01:37]} 15. Nxf6 {[%clk 0:01:41]}  Bxf3 {[%clk 0:01:34]} 16. Qxf3 {[%clk 0:01:39]}  Qe6 {[%clk 0:01:34]} 17. Rad1 {[%clk 0:01:34]}  Kb8 {[%clk 0:01:31]} 18. Bb3 {[%clk 0:01:31]}  Qe7 {[%clk 0:01:30]} 19. Bd5 {[%clk 0:01:29]}  Na7 {[%clk 0:01:28]} 20. Nh5 {[%clk 0:01:26]}  Rhf8 {[%clk 0:01:15]} 21. Ng7 {[%clk 0:01:23]}  Nb5 {[%clk 0:00:53]} 22. Nf5 {[%clk 0:01:23]}  Qf6 {[%clk 0:00:50]} 23. Bb3 {[%clk 0:01:22]}  Rde8 {[%clk 0:00:45]} 24. a4 {[%clk 0:01:19]}  Na7 {[%clk 0:00:44]} 25. Rd2 {[%clk 0:01:16]}  h5 {[%clk 0:00:42]} 26. Qxh5 {[%clk 0:01:15]}  Rh8 {[%clk 0:00:42]} 27. Qxf7 {[%clk 0:01:15]}  Qb6 {[%clk 0:00:41]} 28. Rfd1 {[%clk 0:01:12]}  Nc6 {[%clk 0:00:38]} 29. Bd5 {[%clk 0:01:07]}  Nd8 {[%clk 0:00:38]} 30. Qd7 {[%clk 0:01:03]}  Ref8 {[%clk 0:00:36]} 31. b4 {[%clk 0:01:01]}  g4 {[%clk 0:00:34]} 32. a5 {[%clk 0:01:00]}  Qg6 {[%clk 0:00:35]} 33. Qg7 {[%clk 0:00:50]}  Qh5 {[%clk 0:00:28]} 34. Qxg4 {[%clk 0:00:49]}  Qh7 {[%clk 0:00:29]} 35. Bb3 {[%clk 0:00:47]}  Nf7 {[%clk 0:00:22]} 36. Rd7 {[%clk 0:00:45]}  Rhg8 {[%clk 0:00:22]} 37. Rxf7 {[%clk 0:00:39]}  Rxf7 {[%clk 0:00:20]} 38. Qf3 {[%clk 0:00:19]}  Rff8 {[%clk 0:00:14]} 39. Bxg8 {[%clk 0:00:18]}  Rxg8 {[%clk 0:00:15]} 40. h4 {[%clk 0:00:18]}  Qf7 {[%clk 0:00:15]} 41. g3 {[%clk 0:00:18]}  Qb3 {[%clk 0:00:15]} 42. Qd3 {[%clk 0:00:18]}  Ka7 {[%clk 0:00:13]} 43. Kg2 {[%clk 0:00:18]}  Rg6 {[%clk 0:00:13]} 44. h5 {[%clk 0:00:18]}  Rf6 {[%clk 0:00:13]} 45. h6 {[%clk 0:00:18]}  Qf7 {[%clk 0:00:14]} 46. Rh1 {[%clk 0:00:17]}  Qh7 {[%clk 0:00:13]} 47. Qe3+ {[%clk 0:00:17]}  Ka8 {[%clk 0:00:13]} 48. Qc5 {[%clk 0:00:18]}  Kb8 {[%clk 0:00:13]} 49. Qe7 {[%clk 0:00:18]}  Rf7 {[%clk 0:00:13]} 50. Qxf7 {[%clk 0:00:18]}  Ka7 {[%clk 0:00:11]} 51. Qxh7 {[%clk 0:00:18]} 1-0


[Site "https://www.chess.com"]

[Event "Titled Tuesday Blitz October 31 Early 2023"]
[White "Manon-og, Ramon Jr."]
[Black "Kotlyar, Kirill"]
[WhiteFideId "5200776"]
[BlackFideId "24145599"]
[WhiteElo "2324"]
[BlackElo "2623"]
[Result "1-0"]
[Round "2"]
[TimeControl "180+1"]
[Date "2023.10.31"]
[WhiteClock "0:02:06"]
[BlackClock "0:00:12"]
[Board "129"]

1. e4 {[%clk 0:02:56]}  e5 {[%clk 0:02:59]} 2. Nf3 {[%clk 0:02:56]}  Nc6 {[%clk 0:02:58]} 3. Bc4 {[%clk 0:02:57]}  Nf6 {[%clk 0:02:58]} 4. Ng5 {[%clk 0:02:57]}  d5 {[%clk 0:02:58]} 5. exd5 {[%clk 0:02:57]}  Na5 {[%clk 0:02:58]} 6. Bb5+ {[%clk 0:02:58]}  c6 {[%clk 0:02:58]} 7. dxc6 {[%clk 0:02:59]}  bxc6 {[%clk 0:02:58]} 8. Bd3 {[%clk 0:02:59]}  Nd5 {[%clk 0:02:56]} 9. Nf3 {[%clk 0:02:57]}  Bd6 {[%clk 0:02:48]} 10. O-O {[%clk 0:02:57]}  O-O {[%clk 0:02:43]} 11. Re1 {[%clk 0:02:57]}  Qc7 {[%clk 0:02:22]} 12. h3 {[%clk 0:02:54]}  f5 {[%clk 0:02:21]} 13. Bf1 {[%clk 0:02:53]}  c5 {[%clk 0:02:16]} 14. Nc3 {[%clk 0:02:44]}  Bb7 {[%clk 0:02:06]} 15. Nb5 {[%clk 0:02:42]}  Qd7 {[%clk 0:02:02]} 16. Nxd6 {[%clk 0:02:42]}  Qxd6 {[%clk 0:02:03]} 17. Nxe5 {[%clk 0:02:35]}  Nc6 {[%clk 0:01:47]} 18. Nxc6 {[%clk 0:02:25]}  Qxc6 {[%clk 0:01:48]} 19. Bc4 {[%clk 0:02:23]}  Kh8 {[%clk 0:01:48]} 20. Qf3 {[%clk 0:02:23]}  Nf4 {[%clk 0:01:12]} 21. Qxc6 {[%clk 0:02:22]}  Bxc6 {[%clk 0:01:13]} 22. f3 {[%clk 0:02:21]}  Rae8 {[%clk 0:01:12]} 23. Re3 {[%clk 0:02:14]}  Bd5 {[%clk 0:00:46]} 24. Bb5 {[%clk 0:02:10]}  Rd8 {[%clk 0:00:38]} 25. d3 {[%clk 0:02:08]}  Bb7 {[%clk 0:00:12]} 26. Re7 {[%clk 0:02:06]} 1-0


[Site "https://www.chess.com"]

[Event "Titled Tuesday Blitz October 31 Early 2023"]
[White "kushbhagat2009"]
[Black "GlacierGambit"]
[WhiteElo "2618"]
[BlackElo "2317"]
[Result "1-0"]
[Round "2"]
[TimeControl "180+1"]
[Date "2023.10.31"]
[WhiteClock "0:01:46"]
[BlackClock "0:01:34"]
[Board "132"]

1. d4 {[%clk 0:03:00]}  e6 {[%clk 0:03:00]} 2. Bf4 {[%clk 0:02:57]}  Nf6 {[%clk 0:03:00]} 3. e3 {[%clk 0:02:57]}  c5 {[%clk 0:02:57]} 4. Nf3 {[%clk 0:02:56]}  cxd4 {[%clk 0:02:56]} 5. exd4 {[%clk 0:02:52]}  Be7 {[%clk 0:02:55]} 6. c3 {[%clk 0:02:51]}  O-O {[%clk 0:02:55]} 7. Nbd2 {[%clk 0:02:51]}  b6 {[%clk 0:02:55]} 8. Bd3 {[%clk 0:02:51]}  Ba6 {[%clk 0:02:54]} 9. Bxa6 {[%clk 0:02:51]}  Nxa6 {[%clk 0:02:55]} 10. O-O {[%clk 0:02:51]}  d5 {[%clk 0:02:51]} 11. h3 {[%clk 0:02:51]}  Nd7 {[%clk 0:02:49]} 12. Ne5 {[%clk 0:02:49]}  Nxe5 {[%clk 0:02:49]} 13. Bxe5 {[%clk 0:02:50]}  Nb8 {[%clk 0:02:48]} 14. a4 {[%clk 0:02:47]}  Nc6 {[%clk 0:02:46]} 15. Bh2 {[%clk 0:02:43]}  Rc8 {[%clk 0:02:39]} 16. Nf3 {[%clk 0:02:42]}  a6 {[%clk 0:02:33]} 17. Ne5 {[%clk 0:02:40]}  b5 {[%clk 0:02:31]} 18. axb5 {[%clk 0:02:37]}  axb5 {[%clk 0:02:32]} 19. f4 {[%clk 0:02:32]}  Qb6 {[%clk 0:02:26]} 20. Nd7 {[%clk 0:02:29]}  Qb7 {[%clk 0:02:25]} 21. Nxf8 {[%clk 0:02:29]}  Bxf8 {[%clk 0:02:25]} 22. f5 {[%clk 0:02:29]}  exf5 {[%clk 0:02:10]} 23. Rxf5 {[%clk 0:02:29]}  b4 {[%clk 0:02:09]} 24. Qf3 {[%clk 0:02:08]}  bxc3 {[%clk 0:02:02]} 25. bxc3 {[%clk 0:02:09]}  Nd8 {[%clk 0:01:42]} 26. Qxd5 {[%clk 0:01:59]}  Rxc3 {[%clk 0:01:34]} 27. Qxd8 {[%clk 0:01:46]} 1-0


[Site "https://www.chess.com"]

[Event "Titled Tuesday Blitz October 31 Early 2023"]
[White "Pinheiro, Iung Alicio de O."]
[Black "Muhammad Shahzeb"]
[WhiteFideId "2104350"]
[BlackFideId "7804806"]
[WhiteElo "2617"]
[BlackElo "2317"]
[Result "1-0"]
[Round "2"]
[TimeControl "180+1"]
[Date "2023.10.31"]
[WhiteClock "0:00:12"]
[BlackClock "0:00:00"]
[Board "133"]

1. d4 {[%clk 0:03:00]}  Nf6 {[%clk 0:01:44]} 2. Nf3 {[%clk 0:02:57]}  e6 {[%clk 0:01:44]} 3. Bg5 {[%clk 0:02:56]}  c5 {[%clk 0:01:43]} 4. e3 {[%clk 0:02:44]}  Qb6 {[%clk 0:01:41]} 5. Nbd2 {[%clk 0:02:40]}  a6 {[%clk 0:01:22]} 6. Bd3 {[%clk 0:02:24]}  Nc6 {[%clk 0:01:14]} 7. Bxf6 {[%clk 0:01:56]}  gxf6 {[%clk 0:01:13]} 8. O-O {[%clk 0:01:55]}  cxd4 {[%clk 0:00:49]} 9. Nc4 {[%clk 0:01:42]}  Qc5 {[%clk 0:00:47]} 10. b4 {[%clk 0:01:32]}  Qxb4 {[%clk 0:00:37]} 11. exd4 {[%clk 0:01:29]}  b5 {[%clk 0:00:14]} 12. Rb1 {[%clk 0:01:17]}  Qe7 {[%clk 0:00:13]} 13. Ne3 {[%clk 0:00:38]}  d5 {[%clk 0:00:12]} 14. a4 {[%clk 0:00:39]}  b4 {[%clk 0:00:11]} 15. c4 {[%clk 0:00:33]}  bxc3 {[%clk 0:00:11]} 16. Re1 {[%clk 0:00:33]}  Bg7 {[%clk 0:00:10]} 17. Nxd5 {[%clk 0:00:33]}  Qd6 {[%clk 0:00:07]} 18. Nxc3 {[%clk 0:00:30]}  O-O {[%clk 0:00:07]} 19. d5 {[%clk 0:00:23]}  Ne5 {[%clk 0:00:06]} 20. Be4 {[%clk 0:00:21]}  f5 {[%clk 0:00:05]} 21. Bc2 {[%clk 0:00:15]}  Nxf3+ {[%clk 0:00:04]} 22. Qxf3 {[%clk 0:00:15]}  e5 {[%clk 0:00:04]} 23. Bxf5 {[%clk 0:00:14]}  Bxf5 {[%clk 0:00:02]} 24. Qxf5 {[%clk 0:00:14]}  Rad8 {[%clk 0:00:02]} 25. Rbd1 {[%clk 0:00:14]}  Qf6 {[%clk 0:00:00]} 26. Qg4 {[%clk 0:00:12]} 1-0


[Site "https://www.chess.com"]